fUSD/lending_fUSD_20260407
["ID","MTS","AMOUNT","RATE_DAILY","PERIOD"]
[419935229,1775520632277,-169.35,9.153e-05,2]
[419935230,1775520632287,-348.50366075,0.000105,5]
[419935231,1775520632334,-353.8945,0.000105,5]
[419935232,1775520632412,-149.22282317,0.000105,5]
[419935233,1775520632501,-4682.37901608,0.000105,5]
[419935234,1775520632510,-12896.98979245,0.000107,2]
[419935235,1775520632522,-2665.54468554,0.000107,2]
[419935236,1775520632532,-1200.0,0.00011168,2]
[419935237,1775520632542,-150.0,0.00011192,2]
[419935238,1775520632551,-160.57,0.00011292,2]
[419935239,1775520632561,-150.0,0.00011427,2]
[419935240,1775520632571,-900.21,0.00011467,2]
[419935241,1775520632591,-300.0,0.00011485,2]
[419935242,1775520632604,-2000.0,0.00011486,2]
[419935243,1775520632614,-1500.0,0.00011728,2]
[419935244,1775520632624,-200.0,0.00011784,2]
[419935245,1775520632634,-160.57,0.00011997,2]
[419935246,1775520632644,-10131.52743744,0.00012025,2]
[419935255,1775520640467,-2190.12181778,0.00012025,2]
[419935256,1775520640623,-2607.76125681,0.00012025,2]
[419935257,1775520640635,-2309.0,0.00012025,2]
[419935258,1775520640732,-640.93868497,0.00012025,2]
[419935259,1775520640744,-3216.5170958,0.00012025,2]
[419935260,1775520640764,-74296.5281072,0.00012025,2]
[419935261,1775520640774,-2224.19,0.00012055,2]
[419935262,1775520640784,-250.0,0.00012095,2]
[419935264,1775520640796,-2500.0,0.000121,3]
[419935266,1775520640807,-150.0,0.000121,2]
[419935268,1775520640817,-177.908,0.00012171,2]
[419935270,1775520640827,-2895.863,0.00012171,2]
[419935272,1775520640837,-236.2655799,0.00012173,2]
[419935274,1775520640846,-5844.41389116,0.00012185,2]
[419935276,1775520640856,-200.0,0.00012196,2]
[419935278,1775520640866,-151.0,0.00012196,2]
[419935280,1775520640876,-151.0,0.00012196,2]
[419935282,1775520640886,-151.0,0.00012196,2]
[419935284,1775520640896,-151.0,0.00012196,2]
[419935286,1775520640907,-151.0,0.00012196,2]
[419935288,1775520640916,-151.0,0.00012196,2]
[419935290,1775520640925,-151.0,0.00012196,2]
[419935293,1775520640935,-151.0,0.00012196,2]
[419935296,1775520640946,-151.0,0.00012196,2]
[419935298,1775520640956,-524.95027006,0.00012196,2]
[419935300,1775520640966,-151.0,0.00012196,2]
[419935302,1775520640976,-151.0,0.00012196,2]
[419935304,1775520640985,-151.0,0.00012196,2]
[419935306,1775520640996,-1680.0,0.00012285,2]
[419935308,1775520641005,-152.0,0.00012325,3]
[419935310,1775520641015,-5844.41389114,0.00012598,2]
[419935312,1775520641025,-420.0,0.00012615,2]
[419935314,1775520641034,-1000.0,0.00012672,2]
[419935316,1775520641044,-33035.6402,0.00012672,2]
[419935319,1775520641055,-160.57,0.00012703,2]
[419935321,1775520641065,-200.0,0.00012744,2]
[419935323,1775520641075,-236.26557988,0.00012794,2]
[419935325,1775520641085,-152.0,0.0001285,4]
[419935327,1775520641095,-2000.0,0.00012922,2]
[419935329,1775520641105,-160.0,0.00012942,2]
[419935331,1775520641115,-500.0,0.00012986,2]
[419935333,1775520641125,-3841.64346103,0.00012999,2]
[419935335,1775520641135,-250.0,0.00013,2]
[419935337,1775520641144,-501.0,0.00013,2]
[419935339,1775520641154,-5844.41389114,0.00013011,2]
[419935341,1775520641164,-500.0,0.00013041,2]
[419935343,1775520641174,-1000.0,0.00013127,2]
[419935346,1775520641185,-500.0,0.0001315,2]
[419935348,1775520641194,-341.21474486,0.0001315,2]
[419935350,1775520641204,-500.0,0.0001315,2]
[419935352,1775520641213,-166.15891761,0.0001315,2]
[419935354,1775520641223,-500.0,0.00013286,2]
[419935356,1775520641233,-152.0,0.00013375,5]
[419935358,1775520641244,-168.3834,0.000134,2]
[419935360,1775520641254,-160.57,0.00013409,2]
[419935362,1775520641264,-236.26557988,0.00013415,2]
[419935364,1775520641275,-5844.41389114,0.00013423,2]
[419935366,1775520641285,-1000.0,0.00013445,2]
[419935368,1775520641295,-2351.0,0.00013514,2]
[419935370,1775520641306,-500.0,0.00013562,2]
[419935372,1775520641316,-150.0,0.00013562,2]
[419935374,1775520641326,-150.0,0.00013562,2]
[419935376,1775520641336,-150.0,0.00013562,2]
[419935378,1775520641346,-150.0,0.00013562,2]
[419935380,1775520641357,-150.00000001,0.00013562,2]
[419935382,1775520641367,-150.4044031,0.00013562,2]
[419935384,1775520641377,-150.0,0.00013562,2]
[419935386,1775520641387,-150.56974381,0.00013562,2]
[419935388,1775520641397,-150.0,0.00013562,2]
[419935390,1775520641407,-150.0,0.00013562,2]
[419935393,1775520641417,-164.2153283,0.00013562,2]
[419935438,1775520641844,-150.0,0.00013562,2]
[419935442,1775520641879,-578.20924308,0.00013586,2]
[419935444,1775520641889,-500.0,0.00013586,2]
[419935446,1775520641899,-200.0,0.00013586,2]
[419935448,1775520641908,-500.0,0.00013586,2]
[419935450,1775520641917,-695.39793187,0.00013586,2]
[419935452,1775520641927,-1377.42282659,0.00013586,2]
[419935454,1775520641936,-500.0,0.00013586,2]
[419935456,1775520641945,-1784.09037916,0.00013586,2]
[419935458,1775520641954,-500.0,0.00013586,2]
[419935460,1775520641964,-500.0,0.00013586,2]
[419935462,1775520641973,-500.0,0.00013586,2]
[419935464,1775520641983,-500.0,0.00013586,2]
[419935466,1775520641992,-500.0,0.00013586,2]
[419935468,1775520642002,-500.0,0.00013586,2]
[419935470,1775520642011,-500.0,0.00013586,2]
[419935472,1775520642021,-500.0,0.00013586,2]
[419935474,1775520642031,-500.0,0.00013586,2]
[419935476,1775520642040,-500.0,0.00013586,2]
[419935478,1775520642049,-743.50770149,0.00013586,2]
[419935480,1775520642059,-151.0,0.00013586,2]
[419935482,1775520642069,-174.61919141,0.00013586,2]
[419935484,1775520642078,-279.9045709,0.00013586,2]
[419935486,1775520642088,-500.0,0.00013641,2]
[419935488,1775520642098,-151.0,0.00013641,2]
[419935490,1775520642107,-500.0,0.00013696,2]
[419935492,1775520642117,-151.0,0.00013696,2]
[419935494,1775520642127,-1000.0,0.00013698,2]
[419935496,1775520642136,-1000.0,0.00013698,2]
[419935498,1775520642146,-157.04,0.00013699,2]
[419935500,1775520642156,-7142.1919908,0.00013706,2]
[419935502,1775520642166,-192.73866301,0.00013706,2]
[419935504,1775520642176,-1000.0,0.0001375,2]
[419935506,1775520642185,-500.0,0.00013751,2]
[419935508,1775520642195,-151.0,0.00013751,2]
[419935510,1775520642204,-500.0,0.00013806,2]
[419935512,1775520642214,-151.0,0.00013806,2]
[419935514,1775520642223,-5844.41389114,0.00013836,2]
[419935516,1775520642232,-587.0,0.00013855,2]
[419935518,1775520642242,-500.0,0.00013861,2]
[419935520,1775520642251,-151.0,0.00013861,2]
[419935522,1775520642261,-1000.0,0.00013878,2]
[419935525,1775520642271,-152.0,0.000139,6]
[419935527,1775520642280,-500.0,0.00013916,2]
[419935529,1775520642290,-151.0,0.00013916,2]
[419935531,1775520642299,-177.625075,0.00013938,7]
[419935533,1775520642309,-160.0,0.00013938,2]
[419935535,1775520642318,-180.833986,0.00013938,2]
[419935537,1775520642328,-201.667973,0.00013938,2]
[419935539,1775520642338,-200.727946,0.00013938,7]
[419935541,1775520642347,-239.294673,0.00013938,7]
[419935543,1775520642357,-174.258206,0.00013938,2]
[419935545,1775520642366,-452.955949,0.00013938,7]
[419935547,1775520642376,-160.0,0.00013938,2]
[419935549,1775520642385,-532.881146,0.00013938,2]
[419935552,1775520642394,-905.762293,0.00013938,2]
[419935555,1775520642404,-151.0,0.0001394,2]
[419935558,1775520642413,-151.0,0.0001394,2]
[419935561,1775520642423,-151.0,0.0001394,2]
[419935564,1775520642432,-151.0,0.0001394,2]
[419935566,1775520642441,-151.0,0.0001394,2]
[419935568,1775520642451,-151.0,0.0001394,2]
[419935569,1775520642461,-151.0,0.0001394,2]
[419935571,1775520642471,-151.0,0.0001394,2]
[419935573,1775520642480,-151.0,0.0001394,2]
[419935575,1775520642489,-151.0,0.0001394,2]
[419935577,1775520642498,-151.0,0.0001394,2]
[419935579,1775520642508,-151.0,0.0001394,2]
[419935581,1775520642519,-151.0,0.0001394,2]
[419935584,1775520642531,-151.0,0.0001394,2]
[419935585,1775520642540,-697.02245,0.0001394,2]
[419935587,1775520642550,-151.0,0.0001394,2]
[419935589,1775520642559,-184.867154,0.0001394,2]
[419935592,1775520642568,-697.02245,0.0001394,2]
[419935596,1775520642582,-697.02245,0.0001394,2]
[419935599,1775520642592,-151.0,0.0001394,2]
[419935602,1775520642601,-697.02245,0.0001394,2]
[419935605,1775520642610,-151.0,0.0001394,2]
[419935607,1775520642620,-151.0,0.0001394,2]
[419935610,1775520642629,-151.0,0.0001394,2]
[419935613,1775520642639,-1519.04079,0.0001394,2]
[419935615,1775520642648,-1519.04079,0.0001394,2]
[419935617,1775520642658,-1519.04079,0.0001394,2]
[419935619,1775520642667,-237.087116,0.0001394,2]
[419935620,1775520642677,-390.85991,0.0001394,2]
[419935622,1775520642686,-1519.04079,0.0001394,2]
[419935624,1775520642695,-390.85991,0.0001394,2]
[419935626,1775520642705,-390.85991,0.0001394,2]
[419935628,1775520642714,-390.85991,0.0001394,2]
[419935630,1775520642723,-829.030432,0.0001394,2]
[419935632,1775520642733,-829.030432,0.0001394,2]
[419935635,1775520642743,-829.030432,0.0001394,2]
[419935636,1775520642753,-829.030432,0.0001394,2]
[419935638,1775520642763,-501.0,0.00013944,2]
[419935640,1775520642772,-500.0,0.00013971,2]
[419935642,1775520642782,-182.64228778,0.00013971,2]
[419935645,1775520642792,-4610.47960509,0.00014,7]
[419935647,1775520642802,-200.0,0.00014,2]
[419935649,1775520642812,-500.0,0.00014026,2]
[419935651,1775520642822,-236.26557988,0.00014037,2]
[419935653,1775520642831,-150.0,0.00014064,2]
[419935655,1775520642840,-150.0,0.00014064,2]
[419935656,1775520642851,-150.0,0.00014064,2]
[419935658,1775520642861,-155.05158054,0.00014069,2]
[419935660,1775520642870,-500.0,0.00014081,2]
[419935662,1775520642879,-1200.0,0.00014082,2]
[419935664,1775520642889,-2800.0,0.00014082,2]
[419935666,1775520642898,-2003.16188398,0.00014083,2]
[419935668,1775520642907,-1000.0,0.00014102,2]
[419935670,1775520642916,-192.264196,0.00014107,2]
[419935672,1775520642926,-192.264196,0.00014107,2]
[419935674,1775520642935,-192.264196,0.00014107,2]
[419935676,1775520642944,-192.264196,0.00014107,2]
[419935678,1775520642953,-151.0,0.00014107,2]
[419935680,1775520642962,-151.0,0.00014107,2]
[419935682,1775520642971,-151.0,0.00014107,2]
[419935684,1775520642981,-151.0,0.00014107,2]
[419935686,1775520642990,-151.0,0.00014107,2]
[419935688,1775520643001,-151.0,0.00014107,2]
[419935690,1775520643011,-151.0,0.00014107,2]
[419935693,1775520643021,-356.351811,0.00014107,2]
[419935695,1775520643031,-151.0,0.00014107,2]
[419935696,1775520643041,-233.086545,0.00014107,2]
[419935698,1775520643052,-356.351811,0.00014107,2]
[419935700,1775520643061,-151.0,0.00014107,2]
[419935703,1775520643073,-151.0,0.00014107,2]
[419935705,1775520643082,-233.086545,0.00014107,2]
[419935707,1775520643092,-356.351811,0.00014107,2]
[419935709,1775520643101,-151.0,0.00014107,2]
[419935711,1775520643112,-233.086545,0.00014107,2]
[419935713,1775520643121,-356.351811,0.00014107,2]
[419935714,1775520643131,-151.0,0.00014107,2]
[419935716,1775520643141,-151.0,0.00014107,2]
[419935718,1775520643152,-233.086545,0.00014107,2]
[419935720,1775520643162,-256.89532,0.00014107,2]
[419935722,1775520643172,-176.663627,0.00014107,2]
[419935725,1775520643183,-176.663627,0.00014107,2]
[419935727,1775520643193,-272.719027,0.00014107,2]
[419935729,1775520643202,-272.719027,0.00014107,2]
[419935731,1775520643212,-272.719027,0.00014107,2]
[419935733,1775520643222,-176.663627,0.00014107,2]
[419935735,1775520643231,-272.719027,0.00014107,2]
[419935737,1775520643241,-176.663627,0.00014107,2]
[419935739,1775520643250,-151.0,0.00014107,2]
[419935741,1775520643260,-982.463961,0.00014107,2]
[419935743,1775520643270,-151.0,0.00014107,2]
[419935745,1775520643280,-151.0,0.00014107,2]
[419935747,1775520643290,-163.951386,0.00014107,2]
[419935749,1775520643300,-982.463961,0.00014107,2]
[419935751,1775520643309,-151.0,0.00014107,2]
[419935753,1775520643319,-151.0,0.00014107,2]
[419935755,1775520643328,-163.951386,0.00014107,2]
[419935757,1775520643338,-982.463961,0.00014107,2]
[419935759,1775520643347,-163.951386,0.00014107,2]
[419935761,1775520643357,-151.0,0.00014107,2]
[419935762,1775520643367,-982.463961,0.00014107,2]
[419935765,1775520643377,-163.951386,0.00014107,2]
[419935766,1775520643387,-546.258356,0.00014107,2]
[419935768,1775520643397,-546.258356,0.00014107,2]
[419935770,1775520643406,-546.258356,0.00014107,2]
[419935772,1775520643416,-151.0,0.00014107,2]
[419935775,1775520643426,-151.0,0.00014107,2]
[419935777,1775520643436,-546.258356,0.00014107,2]
[419935778,1775520643446,-914.8218,0.00014107,2]
[419935780,1775520643456,-914.8218,0.00014107,2]
[419935782,1775520643465,-2180.552252,0.00014107,2]
[419935784,1775520643475,-914.8218,0.00014107,2]
[419935786,1775520643484,-2180.552252,0.00014107,2]
[419935788,1775520643494,-914.8218,0.00014107,2]
[419935790,1775520643503,-2180.552252,0.00014107,2]
[419935792,1775520643512,-2180.552252,0.00014107,2]
[419935794,1775520643522,-151.0,0.00014107,2]
[419935796,1775520643531,-151.0,0.00014107,2]
[419935798,1775520643540,-151.0,0.00014107,2]
[419935800,1775520643549,-151.0,0.00014107,2]
[419935802,1775520643559,-151.0,0.00014107,2]
[419935804,1775520643569,-160.57,0.00014115,2]
[419935806,1775520643578,-200.0,0.00014134,2]
[419935808,1775520643588,-1428.38747117,0.00014134,2]
[419935809,1775520643598,-771.01748645,0.00014134,2]
[419935810,1775520643608,-181.08010149,0.00014134,2]
[419935811,1775520643617,-240.30214883,0.00014134,2]
[419935812,1775520643627,-500.0,0.00014136,2]
[419935813,1775520643637,-500.0,0.00014191,2]
[419935814,1775520643646,-1500.0,0.00014246,2]
[419935815,1775520643656,-978.68924617,0.00014246,2]
[419935816,1775520643666,-5844.41389114,0.00014249,2]
[419935817,1775520643675,-424.9,0.00014278,2]
[419935818,1775520643685,-424.9,0.00014278,2]
[419935819,1775520643695,-150.0,0.00014315,2]
[419935820,1775520643704,-350.0,0.00014334,2]
[419935821,1775520643713,-2000.0,0.00014358,2]
[419935822,1775520643723,-1572.0,0.000144,2]
[419935823,1775520643733,-152.0,0.00014425,7]
[419935824,1775520643743,-2836.16146379,0.00014443,2]
[419935825,1775520643752,-150.0,0.00014566,2]
[419935826,1775520643762,-150.0,0.00014566,2]
[419935827,1775520643771,-150.0,0.00014566,2]
[419935828,1775520643781,-1000.0,0.00014568,2]
[419935829,1775520643791,-1000.0,0.00014611,2]
[419935830,1775520643801,-246.5918,0.00014635,2]
[419935831,1775520643810,-205.889067,0.00014635,7]
[419935832,1775520643821,-726.656108,0.00014635,2]
[419935833,1775520643830,-25475.76526431,0.00014642,2]
[419935835,1775520643840,-236.26557988,0.00014658,2]
[419935837,1775520643850,-5888.0,0.00014659,2]
[419935839,1775520643860,-5844.41389114,0.00014662,2]
[419935841,1775520643870,-200.0,0.00014682,2]
[419935843,1775520643880,-1481.23780761,0.00014682,2]
[419935845,1775520643889,-799.54513345,0.00014682,2]
[419935847,1775520643899,-187.78006525,0.00014682,2]
[419935849,1775520643909,-189.0198,0.000147,2]
[419935851,1775520643918,-3046.0,0.000147,2]
[419935853,1775520643928,-162.0,0.0001472,2]
[419935855,1775520643938,-500.0,0.00014788,2]
[419935857,1775520643948,-2000.0,0.00014794,2]
[419935859,1775520643958,-2000.0,0.000148,2]
[419935861,1775520643967,-151.0,0.00014802,2]
[419935863,1775520643977,-7142.1919908,0.00014803,2]
[419935865,1775520643987,-160.57,0.0001482,2]
[419935867,1775520643996,-3522.0,0.00014841,5]
[419935869,1775520644007,-2817.0,0.00014841,5]
[419935871,1775520644017,-1000.0,0.00014847,2]
[419935873,1775520644026,-3292.0,0.00014865,2]
[419935875,1775520644036,-153.51,0.00014882,2]
[419935877,1775520644045,-501.0,0.00014887,3]
[419935879,1775520644055,-2000.0,0.000149,2]
[419935881,1775520644065,-250.0,0.00014932,2]
[419935883,1775520644074,-152.0,0.0001495,8]
[419935885,1775520644084,-1000.0,0.00014958,2]
[419935887,1775520644093,-1000.0,0.00014961,2]
[419935889,1775520644103,-197.77789422,0.00014963,2]
[419935891,1775520644112,-150.0,0.0001497,2]
[419935893,1775520644121,-151.0,0.00014972,2]
[419935895,1775520644130,-151.0,0.00014972,2]
[419935897,1775520644139,-15871.5099138,0.00014973,2]
[419935899,1775520644148,-46543.8716496,0.00014973,2]
[419935901,1775520644158,-970.4815215,0.00014973,2]
[419935903,1775520644167,-151.0,0.00014973,2]
[419935905,1775520644176,-151.0,0.00014973,2]
[419935907,1775520644185,-151.0,0.00014973,2]
[419935909,1775520644194,-373477.88872025,0.00014973,2]
[419935912,1775520644212,-410.03200002,0.00014973,2]
[419935916,1775520644242,-1273.48412641,0.00014973,2]
[419935919,1775520644253,-453.00898369,0.00014973,2]
[419935921,1775520644264,-2961.5268225,0.00014973,2]
[419935929,1775520644331,-497.813004,0.00014973,2]
[419935935,1775520644379,-500.0,0.00013705,2]
[419935937,1775520644389,-500.0,0.00013705,2]
[419935939,1775520644398,-739.2125644,0.00014973,2]
[419935941,1775520644409,-3250.0,0.00014973,2]
[419935986,1775520644820,-500.0,0.00013705,2]
[419935989,1775520644831,-500.0,0.00013705,2]
[419935991,1775520644840,-500.0,0.00013705,2]
[419935993,1775520644849,-500.0,0.00013705,2]
[419935995,1775520644858,-500.0,0.00013705,2]
[419935997,1775520644867,-418.87129156,0.00013705,2]
[419935999,1775520644875,-9538.21876154,0.00014973,2]
[419936003,1775520644909,-4540.0,0.00014973,2]
[419936006,1775520644920,-2600.0,0.00014973,2]
[419936071,1775520646729,-192.52254,0.00013,2]
[419936072,1775520646738,-5811.3393863,0.00014973,2]
[419936073,1775520646757,-1692.08999178,0.00014973,2]
[419936074,1775520646768,-450.87171231,0.00014973,2]
[419936082,1775521065766,171.6,6.524e-05,2]
[419936083,1775521065944,171.6,6.867e-05,2]
[419936084,1775521066140,171.6,7.211e-05,2]
[419936085,1775521066360,171.6,7.554e-05,2]
[419936086,1775521066541,171.6,7.897e-05,2]
[419936087,1775521066752,171.6,8.241e-05,2]
[419936088,1775521087891,166.0,0.00016,120]
[419936089,1775521121934,222.0,0.00016,120]
[419936090,1775521129776,155.0,0.00016,120]
[419936091,1775521149395,255.0,0.00016,120]
[419936102,1775521530712,150.0,0.00015716,120]
[419936104,1775521640115,-171.6,8.584e-05,2]
[419936105,1775521640137,-33.12085057,8.756e-05,2]
[419936106,1775521747111,-216.87914943,8.756e-05,2]
[419936107,1775521747134,-171.6,8.927e-05,2]
[419936108,1775521747156,-171.6,9.271e-05,2]
[419936109,1775521747176,-250.0,9.443e-05,2]
[419936110,1775521747198,-250.0,9.443e-05,2]
[419936111,1775521747220,-107.39731886,9.614e-05,2]
[419936112,1775521771130,-64.20268114,9.614e-05,2]
[419936113,1775521771155,-158.83463034,9.958e-05,2]
[419936118,1775521831784,-12.76536966,9.958e-05,2]
[419936119,1775521831794,-391.53676034,0.0001,2]
[419936120,1775521831808,-108.46323966,0.0001,2]
[419936121,1775521831818,-171.6,0.00010301,2]
[419936122,1775521831827,-179.98897865,0.00010621,2]
[419936123,1775521831838,-333.0,0.00010644,2]
[419936124,1775521831848,-233.0,0.00010644,2]
[419936125,1775521831857,-171.6,0.00010644,2]
[419936126,1775521831867,-216.0,0.00010824,2]
[419936127,1775521831876,-627.0,0.00010859,2]
[419936128,1775521831885,-32.18956511,0.000109,2]
[419936129,1775521831948,-117.81043489,0.000109,2]
[419936130,1775521831958,-222.0,0.000109,2]
[419936131,1775521831967,-171.6,0.00010988,2]
[419936132,1775521831976,-217.0,0.00011016,2]
[419936133,1775521831986,-169.0,0.00011038,2]
[419936134,1775521831995,-527.10498852,0.00011139,2]
[419936135,1775521832006,-665.72995843,0.00011139,2]
[419936144,1775521832227,-7.16505305,0.00011139,2]
[419936146,1775521832237,-300.0,0.00011139,2]
[419936148,1775521832247,-151.0,0.0001114,2]
[419936150,1775521832257,-151.0,0.0001114,2]
[419936152,1775521832266,-151.0,0.0001114,2]
[419936153,1775521832276,-151.0,0.0001114,2]
[419936154,1775521832285,-151.0,0.0001114,2]
[419936155,1775521832294,-151.0,0.0001114,2]
[419936156,1775521832303,-151.0,0.0001114,2]
[419936157,1775521832312,-290.03793891,0.0001114,2]
[419936158,1775521832321,-1554.0,0.00011147,2]
[419936159,1775521832330,-1213.0,0.00011169,2]
[419936160,1775521832339,-2448.0,0.000112,5]
[419936161,1775521832348,-171.6,0.00011331,2]
[419936162,1775521832358,-1600.0,0.00011355,2]
[419936163,1775521832367,-171.6,0.00011674,2]
[419936164,1775521832376,-150.0,0.00011872,2]
[419936165,1775521832385,-39257.5653,0.00011873,2]
[419936166,1775521832395,-500.0,0.00011918,2]
[419936167,1775521832404,-157.5103866,0.00011973,2]
[419936168,1775521832413,-171.6,0.00012018,2]
[419936169,1775521832422,-501.0,0.00012164,2]
[419936170,1775521832431,-1680.0,0.00012253,2]
[419936171,1775521832440,-168.0966,0.000123,2]
[419936172,1775521832449,-171.6,0.00012361,2]
[419936173,1775521832458,-279.30287436,0.00012441,2]
[419936174,1775521832468,-250.0,0.00012704,2]
[419936175,1775521832476,-171.6,0.00012705,2]
[419936176,1775521832486,-1600.0,0.00012775,2]
[419936177,1775521832495,-255.0,0.00012952,2]
[419936178,1775521832505,-250.0,0.00013,2]
[419936179,1775521832514,-501.0,0.00013,2]
[419936180,1775521832523,-171.6,0.00013048,2]
[419936181,1775521832532,-5987.63832568,0.00013348,2]
[419936182,1775521832542,-1000.0,0.00013373,2]
[419936183,1775521832551,-150.0,0.00013463,2]
[419936184,1775521832561,-150.0,0.00013463,2]
[419936185,1775521832572,-150.0,0.00013463,2]
[419936186,1775521832581,-155.27197355,0.00013463,2]
[419936187,1775521832591,-150.0,0.00013463,2]
[419936188,1775521832601,-207.58250816,0.00013463,2]
[419936189,1775521832610,-151.68583305,0.00013463,2]
[419936190,1775521832619,-154.21213872,0.00013463,2]
[419936191,1775521832628,-2351.0,0.00013479,2]
[419936192,1775521832638,-166.66,0.00013516,2]
[419936193,1775521832647,-578.20924308,0.00013582,2]
[419936194,1775521832657,-500.0,0.00013582,2]
[419936195,1775521832666,-500.0,0.00013582,2]
[419936196,1775521832675,-1377.42282659,0.00013582,2]
[419936197,1775521832684,-695.39793187,0.00013582,2]
[419936198,1775521832693,-500.0,0.00013582,2]
[419936199,1775521832702,-500.0,0.00013582,2]
[419936200,1775521832712,-500.0,0.00013582,2]
[419936201,1775521832721,-500.0,0.00013582,2]
[419936202,1775521832730,-500.0,0.00013582,2]
[419936203,1775521832740,-500.0,0.00013582,2]
[419936204,1775521832749,-500.0,0.00013582,2]
[419936205,1775521832759,-500.0,0.00013582,2]
[419936206,1775521832768,-398.03373912,0.00013582,2]
[419936207,1775521832777,-500.0,0.00013582,2]
[419936208,1775521832792,-500.0,0.00013582,2]
[419936209,1775521832802,-500.0,0.00013582,2]
[419936210,1775521832812,-743.50770149,0.00013582,2]
[419936211,1775521832821,-200.0,0.00013582,2]
[419936212,1775521832831,-174.61919141,0.00013582,2]
[419936213,1775521832840,-188.3766,0.000136,2]
[419936214,1775521832850,-5987.63832559,0.00013632,2]
[419936215,1775521832860,-38.4395617,0.00013637,2]
[419936216,1775521832872,-275.75,0.00013637,2]
[419936217,1775521832884,-185.8104383,0.00013637,2]
[419936218,1775521832894,-500.0,0.00013692,2]
[419936219,1775521832904,-2155.85,0.00013699,2]
[419936220,1775521832913,-166.66,0.00013699,2]
[419936221,1775521832925,-997.68,0.00013699,2]
[419936222,1775521832936,-4537.17,0.00013699,2]
[419936223,1775521832946,-7336.23,0.00013699,2]
[419936224,1775521832957,-150.99,0.00013699,2]
[419936225,1775521832969,-8251.4,0.00013699,2]
[419936226,1775521832980,-161.41,0.00013699,2]
[419936227,1775521832990,-23.62020603,0.00013725,2]
[419936228,1775521833116,-136.37979397,0.00013725,2]
[419936229,1775521833127,-500.0,0.00013747,2]
[419936230,1775521833139,-500.0,0.00013802,2]
[419936231,1775521833148,-166.66,0.00013836,2]
[419936232,1775521833159,-500.0,0.00013857,2]
[419936233,1775521833170,-200.1279566,0.000139,2]
[419936234,1775521833180,-500.0,0.00013912,2]
[419936235,1775521833191,-5987.63832559,0.00013915,2]
[419936236,1775521833202,-157.51038658,0.00013937,2]
[419936237,1775521833212,-501.0,0.00013957,2]
[419936238,1775521833222,-166.66,0.00013963,2]
[419936239,1775521833233,-500.0,0.00013967,2]
[419936240,1775521833243,-166.66,0.00013973,2]
[419936241,1775521833253,-3240.0,0.00013987,2]
[419936242,1775521833263,-500.0,0.00014022,2]
[419936243,1775521833272,-155.05158054,0.00014068,2]
[419936244,1775521833282,-2600.0,0.00014082,2]
[419936245,1775521833292,-1100.0,0.00014082,2]
[419936246,1775521833305,-166.66,0.0001411,2]
[419936247,1775521833315,-433.0,0.00014128,2]
[419936248,1775521833325,-1428.38747117,0.0001413,2]
[419936249,1775521833334,-771.01748645,0.0001413,2]
[419936250,1775521833344,-200.0,0.0001413,2]
[419936251,1775521833353,-181.08010149,0.0001413,2]
[419936252,1775521833362,-1600.0,0.00014194,2]
[419936253,1775521833373,-5987.63832559,0.00014199,2]
[419936254,1775521833384,-166.66,0.00014247,2]
[419936255,1775521833394,-350.0,0.00014299,2]